bitfinex/quotes_SOLUSD_20220117
["timestamp","ask_amount","ask_price","bid_price","bid_amount"]
[1642424762403,1.9956258,142.19,142.12,9.042]
[1642424762599,1.9956258,142.19,142.12,32.1769]
[1642424763001,26.6278258,142.23,142.12,42.7277]
[1642424763200,1.9956258,142.23,142.12,42.7277]
[1642424764423,12.5458258,142.24,142.12,42.7277]
[1642424764625,1.9956258,142.24,142.13,70.29]
[1642424764930,1.9956258,142.24,142.15,55.11029787]
[1642424765225,1.9956258,142.24,142.16,23.1795]
[1642424765625,63.44332666,142.25,142.16,23.1795]
[1642424766326,63.44332666,142.25,142.16,33.728]
[1642424767625,61.44770086,142.25,142.16,33.728]
[1642424768728,61.44770086,142.25,142.16,104.018]
[1642424771337,11.90904425,142.25,142.16,104.018]
[1642424771536,10.17,142.25,142.17,10.7978]
[1642424771737,1.9956258,142.27,142.17,10.7978]
[1642424771936,1.9956258,142.27,142.18,23.204]
[1642424772338,40.01896561,142.26,142.18,93.494]
[1642424772541,40.01896561,142.26,142.15,79.71699787]
[1642424772737,1.73904425,142.25,142.16,70.29]
[1642424772946,1.73904425,142.25,142.14,24.0361]
[1642424773140,11.90904425,142.25,142.14,24.0361]
[1642424773540,1.73904425,142.24,142.12,24.4922]
[1642424773740,1.73904425,142.24,142.1,1.91349945]
[1642424773741,10.17,142.23,142.1,26.18229945]
[1642424773941,16.81972093,142.23,142.11,37.24265422]
[1642424774140,8.38876518,142.22,142.11,37.24265422]
[1642424774340,37.81775052,142.21,142.11,37.24265422]
[1642424774543,47.89679477,142.21,142.11,37.24265422]
[1642424774740,1.73904425,142.2,142.11,37.24265422]
[1642424774939,10.5535,142.19,142.11,37.24265422]
[1642424775340,12.29254425,142.19,142.11,37.24265422]
[1642424776543,12.29254425,142.19,142.1,24.2688]
[1642424776943,12.29254425,142.19,142.07,33.3464]
[1642424777747,10.17,142.18,142.08,41.48751192]
[1642424778046,1.73904425,142.17,142.08,41.48751192]
[1642424778245,12.29464425,142.17,142.08,41.48751192]
[1642424778445,10.5556,142.17,142.08,41.48751192]
[1642424780249,10.17,142.18,142.08,52.04131192]
[1642424780647,10.17,142.18,142.09,70.29]
[1642424781047,10.17,142.18,142.09,94.6208]
[1642424781248,10.17,142.18,142.09,105.1736]
[1642424783948,10.17,142.18,142.08,41.48751192]
[1642424784246,28.95754425,142.18,142.08,41.48751192]
[1642424785949,28.95754425,142.18,142.07,33.3464]
[1642424786151,52.22964425,142.18,142.08,22.8176]
[1642424787153,54.22527005,142.18,142.08,22.8176]
[1642424787353,54.22527005,142.18,142.06,44.63941199]
[1642424788154,47.73127005,142.18,142.07,23.5012]
[1642424788555,45.9922258,142.18,142.07,23.5012]
[1642424788753,45.9922258,142.18,142.07,34.0557]
[1642424789357,35.4377258,142.18,142.08,0.25]
[1642424789556,12.1656258,142.18,142.08,0.25]
[1642424789756,10.17,142.18,142.08,0.25]
[1642424790385,10.17,142.18,142.09,10.553]
[1642424791086,10.17,142.18,142.1,70.29]
[1642424791387,10.17,142.18,142.11,37.41288901]
[1642424791988,10.17,142.18,142.11,60.16098901]
[1642424793089,10.17,142.18,142.11,58.85480601]
[1642424796497,10.17,142.18,142.11,129.14480601]
[1642424796694,71.94286812,142.2,142.11,129.14480601]
[1642424798098,71.94286812,142.2,142.11,22.7481]
[1642424798299,84.23501237,142.2,142.11,22.7481]
[1642424798501,94.40501237,142.2,142.11,22.7481]
[1642424798700,94.40501237,142.2,142.07,94.0545]
[1642424798901,94.40501237,142.2,142.07,70.29]
[1642424799299,94.40501237,142.2,142.08,44.46222602]
[1642424799598,1.9956258,142.18,142.08,68.63072602]
[1642424799800,32.89075681,142.17,142.08,68.63072602]
[1642424800304,34.62980106,142.17,142.05,10.17]
[1642424800501,58.36770106,142.17,142.06,24.5073]
[1642424801299,58.36770106,142.17,142.06,64.58067009]
[1642424801499,10.17,142.16,142.06,24.5073]
[1642424801700,10.5583,142.13,142.06,24.5073]
[1642424802602,10.5583,142.13,142.06,71.2181973]
[1642424804703,34.4445,142.15,142.06,71.2181973]
[1642424805109,34.4445,142.15,142.07,70.29]
[1642424806705,34.4445,142.15,142.06,24.5073]
[1642424807907,34.4445,142.15,142.06,64.25514184]
[1642424813909,36.4401258,142.15,142.06,64.25514184]
[1642424814644,38.17917005,142.15,142.05,70.29]
[1642424815018,36.4401258,142.15,142.05,70.29]
[1642424815413,36.4401258,142.15,142.05,95.0809]
[1642424815612,36.4401258,142.15,142.06,41.06009214]
[1642424817113,36.4401258,142.15,142.05,95.0809]
[1642424817315,38.17917005,142.15,142.05,24.7909]
[1642424817516,38.17917005,142.15,142.04,24.0727]
[1642424817915,10.17,142.14,142.04,24.0727]
[1642424818114,10.5597,142.11,142.05,39.94393933]
[1642424820723,31.12288452,142.13,142.05,39.94393933]
[1642424821124,33.11851032,142.13,142.03,93.4145]
[1642424821323,34.85755457,142.13,142.03,93.4145]
[1642424821526,33.11851032,142.13,142.03,93.4145]
[1642424821725,10.17,142.12,142.03,93.4145]
[1642424821926,10.5597,142.11,142.03,93.4145]
[1642424822128,10.5597,142.11,142.04,39.97176983]
[1642424824255,41.48199928,142.1,142.04,39.97176983]
[1642424825153,10.5597,142.11,142.04,39.97176983]
[1642424826156,47.11100872,142.11,142.04,39.97176983]
[1642424826358,10.5597,142.11,142.04,39.97176983]
[1642424826759,10.5597,142.11,142.04,45.97176983]
[1642424827158,37.0747258,142.12,142.04,45.97176983]
[1642424827357,40.64884,142.11,142.04,39.97176983]
[1642424827761,42.6444658,142.11,142.04,39.97176983]
[1642424827960,1.9956258,142.11,142.04,39.97176983]
[1642424828762,1.9956258,142.11,142.05,70.29]
[1642424828960,1.9956258,142.11,142.04,39.97176983]
[1642424829560,1.9956258,142.11,142.05,24.6726]
[1642424829761,1.9956258,142.12,142.05,24.6726]
[1642424832768,25.67004129,142.11,142.05,24.6726]
[1642424833567,1.9956258,142.11,142.05,24.6726]
[1642424836068,1.9956258,142.1,142.05,24.6726]
[1642424837069,1.9956258,142.11,142.05,24.6726]
[1642424840474,27.29305849,142.11,142.05,24.6726]
[1642424840673,1.9956258,142.11,142.05,24.6726]
[1642424840873,12.5547258,142.12,142.05,24.6726]
[1642424841574,51.61900182,142.12,142.05,24.6726]
[1642424841974,1.9956258,142.11,142.05,24.6726]
[1642424844579,1.9956258,142.1,142.05,24.6726]
[1642424845384,1.9956258,142.1,142.05,35.2287]
[1642424845587,1.9956258,142.11,142.05,35.2287]
[1642424845890,1.9956258,142.11,142.05,41.3637]
[1642424846083,1.9956258,142.11,142.06,0.25]
[1642424846884,1.9956258,142.13,142.06,0.25]
[1642424847084,1.9956258,142.13,142.06,70.29]
[1642424847285,1.9956258,142.13,142.07,35.37636475]
[1642424847684,1.9956258,142.13,142.08,0.25]
[1642424847884,1.9956258,142.13,142.08,7.265]
[1642424848085,1.9956258,142.14,142.08,7.015]
[1642424848288,1.9956258,142.14,142.09,23.0787]
[1642424849486,1.9956258,142.15,142.09,33.6315]
[1642424849886,1.9956258,142.15,142.1,46.15814506]
[1642424850612,1.9956258,142.15,142.1,116.44814506]
[1642424851410,1.9956258,142.15,142.1,127.00034506]
[1642424851810,1.9956258,142.16,142.1,127.00034506]
[1642424853214,1.9956258,142.17,142.1,127.00034506]
[1642424854213,1.9956258,142.16,142.11,23.5313]
[1642424855313,1.9956258,142.17,142.11,23.5313]
[1642424857715,1.9956258,142.18,142.11,23.5313]
[1642424861320,1.9956258,142.17,142.11,23.5313]
[1642424862323,1.9956258,142.18,142.11,23.5313]
[1642424866327,1.9956258,142.18,142.11,93.8213]
[1642424867828,20.27513675,142.17,142.11,93.8213]
[1642424869230,20.27513675,142.17,142.11,23.5313]
[1642424870430,1.9956258,142.18,142.11,23.5313]
[1642424870731,1.9956258,142.17,142.11,23.5313]
[1642424871730,1.9956258,142.18,142.11,23.5313]
[1642424872730,1.9956258,142.17,142.11,23.5313]
[1642424873632,1.9956258,142.16,142.11,23.5313]
[1642424875634,1.9956258,142.16,142.06,104.4766]
[1642424875835,1.9956258,142.16,142.07,24.8478]
[1642424876133,12.5515258,142.16,142.07,24.8478]
[1642424876539,12.5515258,142.16,142.08,47.81586932]
[1642424876931,1.9956258,142.14,142.08,47.81586932]
[1642424877132,38.38915837,142.14,142.07,24.8478]
[1642424877532,40.12820262,142.14,142.07,24.8478]
[1642424877933,40.12820262,142.14,142.04,1.91349945]
[1642424878134,72.87330262,142.14,142.05,34.97032245]
[1642424878534,83.43080262,142.14,142.05,34.97032245]
[1642424879037,1.9956258,142.12,142.05,34.97032245]
[1642424880437,12.5544258,142.12,142.05,34.97032245]
[1642424880838,1.9956258,142.12,142.05,34.97032245]
[1642424881239,1.9956258,142.12,142.06,23.1506]
[1642424881839,1.9956258,142.13,142.06,23.1506]
[1642424882040,33.54190841,142.13,142.06,23.1506]
[1642424882938,12.5538258,142.13,142.06,23.1506]
[1642424883239,12.5538258,142.13,142.06,93.4406]
[1642424884039,10.5582,142.13,142.06,93.4406]
[1642424884439,25.82064734,142.14,142.06,93.4406]
[1642424885840,1.9956258,142.14,142.06,93.4406]
[1642424886042,1.9956258,142.14,142.07,0.25]
[1642424886240,1.9956258,142.14,142.07,10.17]
[1642424886651,1.9956258,142.14,142.08,48.78460525]
[1642424886855,35.2583944,142.16,142.08,48.78460525]
[1642424886856,1.9956258,142.15,142.08,48.78460525]
[1642424888054,1.9956258,142.15,142.09,24.0039]
[1642424888254,1.9956258,142.15,142.09,24.2539]
[1642424888654,1.9956258,142.16,142.09,24.0039]
[1642424892879,33.59622594,142.16,142.09,24.0039]
[1642424893080,35.33527019,142.16,142.08,48.78460525]
[1642424893279,41.13127019,142.16,142.08,48.78460525]
[1642424893780,1.9956258,142.15,142.08,48.78460525]
[1642424894180,3.73467005,142.15,142.08,48.78460525]
[1642424894886,1.9956258,142.14,142.08,48.78460525]
[1642424895481,12.5531258,142.14,142.08,48.78460525]
[1642424897385,1.9956258,142.14,142.08,48.78460525]
[1642424898486,1.73904425,142.13,142.06,22.5995]
[1642424898686,52.35686047,142.15,142.06,22.5995]
[1642424898985,52.35686047,142.15,142.06,92.8895]
[1642424899187,12.5523258,142.15,142.06,92.8895]
[1642424899593,1.9956258,142.15,142.06,92.8895]
[1642424899789,1.9956258,142.14,142.06,92.8895]
[1642424900187,1.9956258,142.14,142.07,35.5936417]
[1642424900588,1.9956258,142.14,142.08,23.3832]
[1642424900789,1.9956258,142.15,142.08,23.3832]
[1642424902894,1.9956258,142.15,142.08,93.6732]
[1642424903695,1.9956258,142.16,142.08,93.6732]
[1642424904394,1.9956258,142.16,142.08,104.227]
[1642424905402,1.9956258,142.16,142.09,0.25]
[1642424906402,1.9956258,142.16,142.09,10.8028]
[1642424906600,1.9956258,142.16,142.1,72.58429748]
[1642424906801,1.9956258,142.18,142.1,72.58429748]
[1642424907000,1.9956258,142.18,142.1,142.87429748]
[1642424907201,3.73467005,142.18,142.1,72.58429748]
[1642424907901,1.9956258,142.17,142.1,72.58429748]
[1642424913231,1.9956258,142.17,142.11,70.54]
[1642424914030,1.9956258,142.17,142.11,70.8]
[1642424914330,1.9956258,142.17,142.12,10.5505]
[1642424914530,2.00054654,142.19,142.13,143.0]
[1642424914730,0.00054654,142.19,142.13,148.932]
[1642424914935,0.00054654,142.19,142.14,94.3706]
[1642424915136,0.00054654,142.19,142.14,104.5406]
[1642424915333,0.00054654,142.19,142.14,148.97395654]
[1642424916031,3.9913666,142.22,142.14,148.97395654]
[1642424916331,67.87858868,142.26,142.14,148.97395654]
[1642424916533,67.87858868,142.26,142.14,159.52245654]
[1642424917531,22.7648,142.26,142.14,159.52245654]
[1642424918934,78.21605742,142.28,142.14,159.52245654]
[1642424919133,101.22225742,142.28,142.14,183.15005654]
[1642424921939,101.22225742,142.28,142.14,182.89005654]
[1642424922138,10.17,142.27,142.14,182.64005654]
[1642424922342,10.5493,142.25,142.14,182.64005654]
[1642424922538,50.09711176,142.24,142.14,112.35005654]
[1642424922739,51.83615601,142.24,142.14,112.35005654]
[1642424923342,51.83615601,142.24,142.14,106.35005654]
[1642424923739,1.73904425,142.23,142.14,106.35005654]
[1642424925043,1.73904425,142.23,142.14,176.64005654]
[1642424926948,22.8942,142.24,142.14,176.64005654]
[1642424927353,1.73904425,142.25,142.15,0.25]
[1642424927564,3.9913666,142.26,142.16,10.547]
[1642424927755,3.9913666,142.26,142.18,70.29]
[1642424928157,3.9913666,142.26,142.19,0.25]
[1642424928358,3.9913666,142.26,142.19,43.24348479]
[1642424928558,3.9913666,142.29,142.2,70.29]
[1642424928789,3.9913666,142.29,142.21,0.25]
[1642424929787,27.93733277,142.29,142.2,34.1592]
[1642424929990,29.67637702,142.29,142.2,34.1592]
[1642424930287,1.73904425,142.29,142.2,104.4492]
[1642424930688,5.73041085,142.31,142.21,0.25]
[1642424930888,5.73041085,142.31,142.21,10.7934]
[1642424931090,5.73041085,142.31,142.21,10.5434]
[1642424931293,5.73041085,142.31,142.22,47.09439043]
[1642424931691,5.73041085,142.31,142.22,69.60009043]
[1642424932692,5.73041085,142.31,142.22,150.43269043]
[1642424933093,15.54597895,142.32,142.22,150.43269043]
[1642424933992,13.2936566,142.32,142.22,80.14269043]
[1642424935396,13.2936566,142.32,142.22,150.43269043]
[1642424936797,13.2936566,142.32,142.23,0.25]
[1642424937001,1.38461235,142.32,142.24,70.29]
[1642424937201,3.9913666,142.34,142.24,80.46]
[1642424937398,3.9913666,142.34,142.25,0.25]
[1642424937799,3.9913666,142.34,142.25,45.0174304]
[1642424937998,3.9913666,142.34,142.26,70.29]
[1642424938199,20.02930942,142.35,142.26,70.29]
[1642424938398,20.02930942,142.35,142.25,55.3082304]
[1642424938598,21.76835367,142.35,142.25,55.3082304]
[1642424938804,21.76835367,142.35,142.25,44.7674304]
[1642424939398,32.31025367,142.35,142.25,44.7674304]
[1642424940098,32.31025367,142.35,142.25,69.1460304]
[1642424941000,42.48025367,142.35,142.25,69.1460304]
[1642424941603,112.77025367,142.35,142.22,10.5427]
[1642424941799,136.54995367,142.35,142.2,34.5937]
[1642424942199,140.54132027,142.35,142.2,34.5937]
[1642424942607,140.54132027,142.35,142.21,36.50755124]
[1642424943200,3.9913666,142.32,142.21,36.50755124]
[1642424943401,10.17,142.31,142.21,36.50755124]
[1642424943600,43.63474411,142.3,142.21,36.50755124]
[1642424943803,11.90904425,142.3,142.21,106.79755124]
[1642424944001,11.90904425,142.3,142.21,36.50755124]
[1642424944204,10.17,142.3,142.21,36.50755124]
[1642424944401,10.17,142.3,142.21,60.25475124]
[1642424951913,11.90904425,142.3,142.21,23.7472]
[1642424952108,11.90904425,142.3,142.2,24.0495]
[1642424952710,11.90904425,142.3,142.14,10.17]
[1642424952911,36.36594425,142.3,142.17,65.52828701]
[1642424953511,46.91174425,142.3,142.17,65.52828701]
[1642424953710,50.90311085,142.3,142.17,65.52828701]
[1642424954611,10.549,142.26,142.17,65.52828701]
[1642424954811,38.29462578,142.25,142.17,65.52828701]
[1642424955037,40.03367003,142.25,142.17,65.52828701]
[1642424955211,40.03367003,142.25,142.15,24.3206]
[1642424955411,1.73904425,142.24,142.13,22.8545]
[1642424955613,10.5505,142.23,142.13,22.8545]
[1642424956214,10.5505,142.23,142.14,37.44879755]
[1642424958115,10.17,142.24,142.14,37.44879755]
[1642424958315,10.17,142.24,142.15,70.54]
[1642424959520,10.17,142.24,142.17,42.1108365]
[1642424960717,14.1613666,142.28,142.18,70.54]
[1642424960916,14.1613666,142.28,142.18,93.8569]
[1642424961116,14.1613666,142.28,142.18,94.1169]
[1642424961117,3.9913666,142.28,142.18,94.1169]
[1642424961331,3.9913666,142.29,142.18,94.1169]
[1642424962424,24.7063666,142.31,142.18,104.6625]
[1642424962846,26.44541085,142.31,142.18,104.6625]
[1642424964349,16.27541085,142.31,142.18,104.6625]
[1642424966750,16.27541085,142.31,142.18,110.6625]
[1642424966952,12.28404425,142.31,142.2,70.29]
[1642424967150,12.28404425,142.31,142.21,93.1472]
[1642424967550,1.73904425,142.31,142.21,93.1472]
[1642424967752,3.9913666,142.32,142.22,0.25]
[1642424967954,3.9913666,142.33,142.22,62.84766206]
[1642424968152,3.9913666,142.33,142.23,70.29]
[1642424968353,3.9913666,142.33,142.24,10.7913]
[1642424968554,3.9913666,142.33,142.25,45.18243786]
[1642424968753,3.9913666,142.33,142.25,115.73243786]
[1642424968954,1.73904425,142.34,142.25,115.73243786]
[1642424969858,3.9913666,142.35,142.26,0.25]
[1642424970056,3.9913666,142.35,142.26,8.115]
[1642424970256,3.9913666,142.35,142.26,36.8956]
[1642424970656,3.9913666,142.35,142.26,107.1856]
[1642424971256,7.98292629,142.36,142.26,107.1856]
[1642424971456,7.98292629,142.36,142.26,117.7248]
[1642424972656,3.9913666,142.37,142.26,117.7248]
[1642424973059,3.9913666,142.37,142.26,117.4748]
[1642424973257,28.64301161,142.37,142.26,109.6098]
[1642424973459,28.64301161,142.37,142.26,39.3198]
[1642424973660,1.73904425,142.36,142.25,69.38393786]
[1642424974060,44.32687992,142.34,142.25,45.18243786]
[1642424974460,1.73904425,142.33,142.25,45.18243786]
[1642424975461,12.28224425,142.33,142.25,45.18243786]
[1642424976460,1.73904425,142.32,142.25,45.18243786]
[1642424978663,20.7132,142.33,142.25,45.18243786]
[1642424979064,10.17,142.33,142.25,45.18243786]
[1642424979864,1.73904425,142.32,142.25,45.18243786]
[1642424980075,10.17,142.33,142.25,45.18243786]
[1642424984369,23.4153,142.35,142.25,115.47243786]
[1642424984568,23.4153,142.35,142.26,23.7262]
[1642424985771,14.5326666,142.36,142.26,23.7262]
[1642424986772,14.5326666,142.36,142.27,0.25]
[1642424986973,10.5413,142.36,142.27,0.25]
[1642424988173,14.5326666,142.36,142.27,0.25]
[1642424990407,1.73904425,142.35,142.26,23.7262]
[1642424990606,10.5432,142.33,142.25,45.18243786]
[1642424990805,20.7132,142.33,142.25,45.18243786]
[1642424991005,1.73904425,142.32,142.25,45.18243786]
[1642424991205,11.90904425,142.32,142.25,45.18243786]
[1642424992405,22.45324425,142.32,142.25,45.18243786]
[1642424992607,10.17,142.32,142.25,45.18243786]
[1642424992808,14.1613666,142.32,142.25,45.18243786]
[1642424993808,10.17,142.32,142.25,45.18243786]
[1642424996710,14.1613666,142.32,142.25,45.18243786]
[1642424999512,10.17,142.32,142.25,45.18243786]
[1642425000414,14.1613666,142.32,142.25,45.18243786]
[1642425001218,10.17,142.32,142.25,45.18243786]
[1642425002816,14.1613666,142.32,142.25,45.18243786]
[1642425003217,3.9913666,142.32,142.25,45.18243786]
[1642425003421,3.9913666,142.32,142.26,70.54]
[1642425003617,3.9913666,142.33,142.26,76.376]
[1642425003820,3.9913666,142.33,142.27,24.5105]
[1642425004017,3.9913666,142.33,142.28,48.86214476]
[1642425004219,3.9913666,142.33,142.28,49.11214476]
[1642425005121,3.9913666,142.36,142.28,55.64714476]
[1642425005319,3.9913666,142.36,142.28,72.07714476]
[1642425005718,3.9913666,142.36,142.28,82.61534476]
[1642425005921,6.00693866,142.39,142.32,126.0]
[1642425006118,6.00693866,142.39,142.33,37.71985294]
[1642425006320,6.00693866,142.39,142.34,0.25]
[1642425006820,6.00693866,142.39,142.34,81.0739]
[1642425007821,6.00693866,142.43,142.34,81.0739]
[1642425008022,6.00693866,142.43,142.35,23.5524]
[1642425008224,45.16919853,142.44,142.36,34.89998387]
[1642425008424,11.90904425,142.44,142.36,34.89998387]
[1642425008621,1.73904425,142.43,142.36,34.89998387]
[1642425014931,1.73904425,142.45,142.36,34.89998387]
[1642425015129,1.73904425,142.45,142.36,105.18998387]
[1642425015331,26.71093866,142.46,142.36,105.44998387]
[1642425015530,10.17,142.46,142.36,105.44998387]
[1642425015730,10.17,142.46,142.37,22.9251]
[1642425016133,10.17,142.46,142.38,70.29]
[1642425016331,10.17,142.46,142.39,35.21628413]
[1642425016528,10.17,142.46,142.39,41.62228413]
[1642425017131,10.17,142.46,142.39,64.49148413]
[1642425018535,10.17,142.46,142.39,58.08548413]
[1642425018936,11.90904425,142.46,142.39,58.08548413]
[1642425020538,10.17,142.46,142.39,58.08548413]
[1642425020937,53.21999912,142.46,142.39,58.08548413]
[1642425021137,53.21999912,142.46,142.39,35.21628413]
[1642425021539,11.90904425,142.46,142.39,35.21628413]
[1642425022139,11.90904425,142.46,142.36,22.9131]
[1642425022140,22.44274425,142.46,142.36,22.9131]
[1642425023166,35.70460937,142.45,142.37,43.47445747]
[1642425023370,22.44274425,142.46,142.37,43.47445747]
[1642425023571,1.73904425,142.44,142.37,43.47445747]
[1642425024174,1.73904425,142.44,142.36,22.9131]
[1642425025076,45.89293839,142.44,142.37,36.91561994]
[1642425025287,1.73904425,142.44,142.37,36.91561994]
[1642425025470,12.27454425,142.44,142.37,36.91561994]
[1642425026274,1.73904425,142.44,142.37,36.91561994]
[1642425027279,27.34397655,142.43,142.37,36.91561994]
[1642425027678,1.73904425,142.43,142.37,36.91561994]
[1642425028887,37.6632369,142.43,142.37,36.91561994]
[1642425029083,37.6632369,142.43,142.31,10.5356]
[1642425029084,48.1991369,142.43,142.31,10.5356]
[1642425029284,67.1821369,142.43,142.32,24.0426]
[1642425030086,67.1821369,142.43,142.33,47.13558873]
[1642425030280,58.3691369,142.43,142.33,47.13558873]
[1642425032584,58.3691369,142.43,142.32,24.0426]
[1642425032985,58.3691369,142.43,142.27,10.5387]
[1642425033185,22.8188,142.42,142.27,10.5387]
[1642425033386,10.5398,142.38,142.26,115.7317]
[1642425033586,39.68052687,142.37,142.27,38.6713511]
[1642425034188,39.68052687,142.37,142.28,24.6922]
[1642425035389,50.22092687,142.37,142.28,24.6922]
[1642425035587,1.99611043,142.36,142.28,24.6922]
[1642425037989,50.22092687,142.37,142.28,24.6922]
[1642425037990,1.99611043,142.35,142.28,24.6922]
[1642425038389,1.73904425,142.34,142.28,24.6922]
[1642425038988,1.73904425,142.34,142.25,104.5651]
[1642425038989,36.76592791,142.33,142.25,49.0424367]
[1642425039389,36.76592791,142.33,142.22,24.2998]
[1642425039595,10.17,142.32,142.22,24.2998]
[1642425039792,11.90904425,142.32,142.22,24.2998]
[1642425039993,13.90515468,142.32,142.22,24.2998]
[1642425040392,24.44925468,142.32,142.23,45.14892023]
[1642425041192,1.99611043,142.31,142.23,45.14892023]
[1642425042202,11.90904425,142.32,142.23,45.14892023]
[1642425042203,13.90515468,142.32,142.23,45.14892023]
[1642425042494,10.545,142.31,142.23,45.14892023]
[1642425042898,40.2032504,142.3,142.23,45.14892023]
[1642425043302,50.3732504,142.3,142.23,45.14892023]
[1642425043797,52.11229465,142.3,142.21,24.016]
[1642425044397,62.65809465,142.3,142.21,24.016]
[1642425044598,22.45484425,142.3,142.21,24.016]
[1642425045699,39.53692912,142.29,142.21,24.016]
[1642425045900,10.5484,142.27,142.21,24.016]
[1642425046100,15.9144,142.27,142.21,24.016]
[1642425046299,37.43224919,142.26,142.21,24.016]
[1642425047100,11.90904425,142.28,142.21,24.016]
[1642425047701,10.17,142.28,142.21,24.016]
[1642425049123,12.16611043,142.31,142.21,24.016]
[1642425049323,12.16611043,142.31,142.21,94.566]
[1642425049525,27.13556382,142.33,142.22,0.25]
[1642425049927,10.5441,142.32,142.22,0.25]
[1642425050625,1.23575339,142.33,142.22,0.25]
[1642425051125,1.23575339,142.33,142.22,10.7925]
[1642425051327,1.23575339,142.33,142.23,24.8515]
[1642425051726,1.23575339,142.33,142.24,0.25]
[1642425052125,22.70751043,142.36,142.24,49.43493312]
[1642425052324,22.70751043,142.36,142.25,22.6926]
[1642425052527,12.16611043,142.36,142.25,103.5229]
[1642425052726,12.16611043,142.36,142.26,0.25]
[1642425052927,10.17,142.36,142.26,0.25]
[1642425053726,10.17,142.36,142.25,109.5229]
[1642425053727,28.68939071,142.35,142.25,28.6926]
[1642425053926,28.68939071,142.35,142.25,22.6926]
[1642425054125,40.59843496,142.35,142.25,22.6926]
[1642425054329,38.85939071,142.35,142.25,22.6926]
[1642425055427,10.5424,142.34,142.25,22.6926]
[1642425056633,12.16611043,142.35,142.25,22.6926]
[1642425058031,22.70791043,142.35,142.25,22.6926]
[1642425058633,24.44695468,142.35,142.25,22.6926]
[1642425059232,1.99611043,142.34,142.25,22.6926]
[1642425059433,36.13938105,142.33,142.25,22.6926]
[1642425060233,10.17,142.32,142.25,22.6926]
[1642425060435,10.17,142.32,142.19,10.17]
[1642425060638,1.73904425,142.31,142.21,24.9845]
[1642425060835,10.546,142.3,142.21,24.7345]
[1642425061035,20.716,142.3,142.21,24.7345]
[1642425061336,40.70541207,142.29,142.26,2.3341169]
[1642425061535,2.94049997,142.28,142.26,2.3341169]
[1642425062437,25.39634422,142.28,142.26,2.3341169]
[1642425062638,23.65729997,142.28,142.26,2.3341169]
[1642425063537,25.39634422,142.28,142.26,2.3341169]
[1642425064637,95.68634422,142.28,142.26,2.3341169]
[1642425065038,59.0,142.27,142.15,23.4835]
[1642425065240,10.5501,142.24,142.15,23.4835]
[1642425065737,11.90904425,142.26,142.16,0.25]
[1642425065937,10.17,142.26,142.16,0.25]
[1642425066137,10.17,142.26,142.16,110.13391055]
[1642425066341,20.7188,142.26,142.16,110.13391055]
[1642425066738,10.17,142.26,142.16,116.39391055]
[1642425066938,10.17,142.26,142.16,110.39391055]
[1642425067338,10.17,142.26,142.16,116.39391055]
[1642425068443,10.17,142.26,142.16,126.94091055]
[1642425068643,1.99611043,142.28,142.16,137.11091055]
[1642425068848,1.99611043,142.3,142.17,23.3009]
[1642425069244,1.99611043,142.3,142.18,0.25]
[1642425069442,12.16611043,142.31,142.18,0.25]
[1642425069642,44.97254233,142.3,142.18,0.25]
[1642425069844,55.51824233,142.3,142.19,39.80370795]
[1642425070250,55.51824233,142.3,142.2,22.6643]
[1642425070445,57.51435276,142.3,142.2,22.6643]
[1642425071047,12.54181043,142.3,142.2,22.6643]
[1642425071247,1.99611043,142.3,142.2,22.6643]
[1642425071448,1.99611043,142.29,142.2,22.9243]
[1642425071648,1.99611043,142.29,142.21,0.25]
[1642425071850,1.99611043,142.29,142.2,22.6643]
[1642425072248,1.99611043,142.29,142.22,46.18582593]
[1642425072448,12.16611043,142.31,142.22,46.18582593]
[1642425073048,13.90515468,142.31,142.22,46.18582593]
[1642425073449,47.49491344,142.3,142.22,46.18582593]
[1642425073651,10.17,142.29,142.2,22.6643]
[1642425074550,11.90904425,142.29,142.2,61.22644786]
[1642425075081,10.547,142.28,142.2,61.22644786]
[1642425075279,29.47426487,142.27,142.2,61.22644786]
[1642425075482,29.47426487,142.27,142.2,22.6643]
[1642425076484,40.02216487,142.27,142.2,22.6643]
[1642425078688,41.76120912,142.27,142.18,24.5728]
[1642425078885,10.17,142.26,142.18,24.5728]
[1642425079285,10.55,142.24,142.18,24.5728]
[1642425079485,10.55,142.24,142.16,24.736]